Cogmind - Beta 16 @@@ ROGUE MODE // 2025.10.30 @ 15:18:06 Player: opdo Result: Destroyed by N4-OD9(R) with Subdweller Machine Gun Performance ------------- Evolutions (0) 0 Regions Visited (3) 600 Robots Destroyed (23) 115 Value Destroyed (489) 489 Prototype IDs (1) 20 Alien Tech Used (0) 0 Bonus (54) 54 TOTAL SCORE: 1278 Bonus ------- Follower Combat Kills 54 Cogmind --------- Core Integrity 0/250 Matter 224/300 Energy 250/250 System Corruption 0% Temperature Cool (0) Movement Treading (240) Ox1 Location -10/Subcaves Parts ------- > --- POWER (1) -------- Ion Engine > --- PROPULSION (2) --- Light Treads > --- UTILITY (2) ------ Large Storage Unit Experimental Sensor Array > --- WEAPON (2) ------- Heavy Assault Rifle Rocket Launcher > --- INVENTORY (15) --- Subdweller Power Source Aluminum Leg Aluminum Leg Subdweller Monowheel Huge Storage Unit Targeting Computer Utility Shielding Small Laser Beam Rifle Assault Rifle Light Assault Rifle Subdweller Machine Gun Mining Laser Peak State ------------ > --- POWER ------------ Ion Engine > --- PROPULSION ------- Light Treads Light Treads > --- UTILITY ---------- Large Storage Unit Experimental Sensor Array > --- WEAPON ----------- Heavy Assault Rifle Rocket Launcher > --- INVENTORY -------- Subdweller Power Source Aluminum Leg Aluminum Leg Subdweller Monowheel Huge Storage Unit Targeting Computer Utility Shielding Small Laser Beam Rifle Assault Rifle Light Assault Rifle Subdweller Machine Gun Mining Laser [Rating: 18] Favorites ----------- Power Ion Engine Engine Ion Engine Propulsion Light Treads Treads Light Treads Utility Large Storage Unit Device Experimental Sensor Array Storage Large Storage Unit Protection Weapon Shielding Weapon Light Assault Rifle Ballistic Gun Light Assault Rifle Launcher Rocket Launcher Special Weapon Mining Laser Build | -11 -10 -10 -10 ------- Run | Yrd Mat Min Sub Slots Evolved . | . . . . Power . | . . . . Propulsion . | . . . . Utility . | . . . . Weapon . | . . . . Parts Attached 22 | 6 5 5 6 Power 4 | 1 2 1 . Engine 4 | 1 2 1 . Core . | . . . . Reactor . | . . . . Propulsion 6 | 2 1 1 2 Treads 6 | 2 1 1 2 Leg . | . . . . Wheel . | . . . . Hover . | . . . . Flight . | . . . . Utility 5 | 1 2 1 1 Device 1 | . . . 1 Storage 2 | 1 1 . . Processor . | . . . . Hackware . | . . . . Protection 2 | . 1 1 . Artifact . | . . . . Weapon 7 | 2 . 2 3 Energy Gun . | . . . . Energy Cannon . | . . . . Ballistic Gun 5 | 2 . 2 1 Ballistic Cannon . | . . . . Launcher 1 | . . . 1 Special Weapon 1 | . . . 1 Impact Weapon . | . . . . Slashing Weapon . | . . . . Piercing Weapon . | . . . . Special Melee Weapon . | . . . . Unidentified Prototypes 1 | . . . 1 Parts Lost 5 | . 1 1 3 Power 2 | . 1 . 1 Propulsion 3 | . . 1 2 Utility . | . . . . Weapon . | . . . . Highest Loss Streak 1 | . 1 1 1 To Critical Strikes 1 | . . . 1 Average Backups 13 | 1 10 15 14 Power 1 | . 1 2 1 Propulsion 4 | . 4 5 3 Utility 2 | . 2 3 3 Weapon 4 | . 2 4 6 Tool/Special . | . . . . Unused Backups 15 | . . 3 12 Power 2 | . . . 2 Propulsion 6 | . . 2 4 Utility 3 | . . 1 2 Weapon 4 | . . . 4 Tool/Special . | . . . . Average Slot Usage (%) 95 | . 98 99 90 Engine 11 | . 13 14 8 Treads 26 | . 27 27 24 Device 2 | . . . 7 Storage 14 | . 14 14 14 Protection 10 | . 13 14 6 Ballistic Gun 25 | . 28 28 22 Launcher 1 | . . . 2 Peak Build Rating 18 | 6 8 10 18 Average Rating 10 | 4 7 8 13 On Entrance 6 | . 6 8 10 Avg Prop Armor Cover (%) . | . . . . Naked Turns . | . . . . Heaviest Build 33 | 11 29 30 33 Greatest Support 40 | 40 40 40 40 Greatest Overweight (x) 1 | . 1 1 1 Average Overweight (x) . | . . . . Largest Inventory Capacity 15 | 8 15 15 15 Average Capacity 14 | 6 13 15 15 Most Carried 15 | 4 15 15 15 Average Carried 13 | 1 10 14 14 Final Capacity 15 | 8 15 15 15 Final Carried 15 | 4 15 15 13 Class Distribution -------------------- 66% | Mutant 33% | Scavenger-Mutant Dominant Class ---------------- Mutant | -10/Materials Mutant | -10/Mines Scavenger-Mutant | -10/Subcaves Resources | -11 -10 -10 -10 ----------- Run | Yrd Mat Min Sub Matter Collected 714 | 184 243 122 165 Remotely . | . . . . Salvage Created 711 | . 242 198 271 Parts 54 | . 19 17 18 Haulers Intercepted 2 | . 2 . . Recyclers Shooed 2 | . 2 . . Parts Field Recycled . | . . . . Retrieved Matter . | . . . . Parts Self-Destructed 11 | . . . 11 Prevented . | . . . . Parts Restored . | . . . . Kills | -11 -10 -10 -10 ------- Run | Yrd Mat Min Sub Combat Hostiles Destroyed 21 | . 6 7 8 Guns 20 | . 6 7 7 AOE 1 | . . . 1 Classes Destroyed 5 | . 3 1 1 Hauler 2 | . 2 . . Swarmer 12 | . 5 4 3 Grunt 3 | . 1 2 . Sentry 2 | . . 1 1 Subdweller 4 | . . . 4 Best Kill Streak 3 | . 2 2 3 Combat Bots Only 3 | . 2 2 3 Max Kills in Single Turn 2 | . 1 1 2 Gunslinging . | . . . . Exploded 1 | . . . 1 Melee . | . . . . Uniques/NPCs Destroyed . | . . . . Combat | -11 -10 -10 -10 -------- Run | Yrd Mat Min Sub Hostile Shots Fired 119 | . 40 39 40 Missed 23 | . 8 8 7 Hits 96 | . 32 31 33 Projectile 96 | . 32 31 33 Critical Strikes 2 | . . . 2 Damage Taken 1277 | . 288 378 611 Core 267 | . 40 57 170 Absorbed by Shields . | . . . . Redirected to Shielding 35 | . 15 20 . Core Remaining (%) 100 | 100 . . . Volleys Fired 84 | . 30 19 35 Largest 2 | . 2 2 2 Hottest 123 | . 40 40 123 Shots Fired 159 | . 60 38 61 Gun 146 | . 60 38 48 Cannon . | . . . . Launcher 6 | . . . 6 Special 7 | . . . 7 Kinetic 146 | . 60 38 48 Thermal 7 | . . . 7 Explosive 6 | . . . 6 Electromagnetic . | . . . . Robot Hit Streak 13 | . 8 5 13 Robot Miss Streak 3 | . 3 3 2 Penetration Max . | . . . . Secondary Targets 3 | . 1 1 1 Max Gunslinging Chain 1 | . 1 1 1 Shots Hit Robots 100 | . 36 22 42 Core Hits 36 | . 12 9 15 Critical Kills 1 | . . . 1 Critical Parts Destroyed 2 | . 2 . . Critical Strikes 3 | . 2 . 1 Destroy 3 | . 2 . 1 Melee Attacks . | . . . . Impact . | . . . . Slashing . | . . . . Piercing . | . . . . Sneak Attacks . | . . . . Combat Hostiles . | . . . . Follow-up Attacks . | . . . . Damage Inflicted 1417 | . 418 240 759 Guns 1091 | . 390 240 461 Cannons . | . . . . Explosions 298 | . . . 298 Melee . | . . . . Ramming 28 | . 28 . . Kinetic 1091 | . 390 240 461 Thermal . | . . . . Explosive 298 | . . . 298 Electromagnetic . | . . . . Impact . | . . . . Slashing . | . . . . Piercing . | . . . . Highest Corruption . | . . . . Average Corruption . | . . . . Corruption Purged . | . . . . Corruption Blocked . | . . . . Overload Shots . | . . . . Overflow Damage 33 | . . . 33 Projectiles . | . . . . Explosions 33 | . . . 33 Melee . | . . . . Knockbacks . | . . . . Impact . | . . . . Kinetic . | . . . . Secondary . | . . . . Self-Inflicted Damage 48 | . . . 48 Shots 2 | . . . 2 Rammed 4 | . 4 . . Targets Rammed 4 | . 4 . . Kicked . | . . . . Crushed . | . . . . Highest Temperature 18 | . 12 18 8 Average Temperature 9 | . 8 10 8 Received Heat Transfer 237 | . 24 108 105 Siege Activations . | . . . . Martial Activations . | . . . . Shielding Activations . | . . . . Robots Disrupted . | . . . . Combat Hostiles . | . . . . Robots Corrupted . | . . . . Combat Hostiles . | . . . . Parts Fried . | . . . . Impact Corruptions . | . . . . Robots Melted . | . . . . Combat Hostiles . | . . . . Parts Melted . | . . . . Heat Transferred . | . . . . Parts Sabotaged . | . . . . Parts Stolen . | . . . . Parts Stripped . | . . . . Power Chain Reactions . | . . . . Alert | -11 -10 -10 -10 ------- Run | Yrd Mat Min Sub Maximum Alert Level . | . . . . Low Security (%) 100 | 100 100 100 . Level 1 . | . . . . Level 2 . | . . . . Level 3 . | . . . . Level 4 . | . . . . Level 5 . | . . . . High Security . | . . . . Max Security . | . . . . Peak Influence 141 | . 110 141 . Initial 9 | . . 9 . Average 40 | . 39 45 . Influence Increases 669 | . 270 308 91 Destroy 0b10 Robot/C 420 | . 120 220 80 Destroy 0b10 Robot/NC 10 | . 10 . . Destroy Leader 74 | . 24 40 10 Allied During Kill 34 | . . 33 1 Successful Hack 41 | . 41 . . Lose Combat Pursuer 90 | . 75 15 . Influence Decreases 669 | . 245 333 91 Entered New Map 16 | . . 16 . Time Decay 623 | . 235 307 81 Lost Part 30 | . 10 10 10 Squads Dispatched 1 | . 1 . . Investigation . | . . . . Extermination . | . . . . Reinforcement 1 | . 1 . . Assault . | . . . . Garrison . | . . . . Intercept . | . . . . Searches Triggered . | . . . . Construction Impeded . | . . . . Haulers Reinforced . | . . . . Active Scanning Responses . | . . . . Cargo Convoy Interrupts . | . . . . Stealth | -11 -10 -10 -10 --------- Run | Yrd Mat Min Sub Distress Signals 1 | . 1 . . Communications Jammed . | . . . . Distress Signals . | . . . . Times Spotted 38 | . 16 12 10 Peak Tracking Total 5 | . 5 3 3 Tactical Retreats 5 | . 4 1 . Traps | -11 -10 -10 -10 ------- Run | Yrd Mat Min Sub Traps Triggered 2 | . 2 . . Indirectly . | . . . . Trap Hack Attempts . | . . . . Triggered . | . . . . Disarmed . | . . . . Reprogrammed . | . . . . Reused . | . . . . Traps Extracted . | . . . . Installed . | . . . . Triggered . | . . . . Machines | -11 -10 -10 -10 ---------- Run | Yrd Mat Min Sub Machines Disabled . | . . . . Max in Single Turn . | . . . . Machines Repaired . | . . . . Machines Dismantled . | . . . . Machines Sabotaged . | . . . . Overloaded Fab Kills . | . . . . Hacking | -11 -10 -10 -10 --------- Run | Yrd Mat Min Sub Machines Accessed 6 | . 6 . . Terminals 6 | . 6 . . Fabricators . | . . . . Repair Stations . | . . . . Recycling Units . | . . . . Scanalyzers . | . . . . Garrison Access . | . . . . Total Hacks 18 | . 18 . . Successful 10 | . 10 . . Failed 8 | . 8 . . Catastrophic 2 | . 2 . . Database Lockouts . | . . . . Manual 15 | . 15 . . Terminals 18 | . 18 . . Fabricators . | . . . . Repair Stations . | . . . . Recycling Units . | . . . . Scanalyzers . | . . . . Garrison Access . | . . . . Terminal Hacks 4 | . 4 . . Robot Analysis 1 | . 1 . . Terminal Index 1 | . 1 . . Registered Components 1 | . 1 . . Zone Layout 1 | . 1 . . Fabricator Hacks . | . . . . Repair Station Hacks . | . . . . Recycling Unit Hacks . | . . . . Scanalyzer . | . . . . Garrison Access Hacks . | . . . . Unauthorized Hacks 6 | . 6 . . Terminals 6 | . 6 . . Assimilate 1 | . 1 . . Skim 5 | . 5 . . Fabricators . | . . . . Repair Stations . | . . . . Recycling Units . | . . . . Scanalyzers . | . . . . Garrison Access . | . . . . Data Cores Recovered . | . . . . Used . | . . . . Hacking Detections 6 | . 6 . . Full Trace Events . | . . . . Feedback Events . | . . . . Feedback Blocked . | . . . . Robot Schematics Acquired . | . . . . Robots Built . | . . . . Authchips . | . . . . Time . | . . . . Total Robot Build Rating . | . . . . Part Schematics Acquired . | . . . . Parts Built . | . . . . Authchips . | . . . . Time . | . . . . Total Part Build Rating . | . . . . Part Studies Acquired . | . . . . Parts Repaired . | . . . . Time . | . . . . Parts Recycled . | . . . . Recycled Matter . | . . . . Retrieved Matter . | . . . . Retrieved Components . | . . . . Parts Scanalyzed . | . . . . Part Schematics Acquired . | . . . . Parts Damaged . | . . . . Bothacking | -11 -10 -10 -10 ------------ Run | Yrd Mat Min Sub Used RIF Installer . | . . . . Robots Hacked . | . . . . Non-combat . | . . . . Combat . | . . . . Robot Hacks Applied . | . . . . Relay Couplers Released . | . . . . Fabnet Peak Effective % . | . . . . Robots Rewired . | . . . . Allies Hacked . | . . . . Hacks Repelled . | . . . . Allies | -11 -10 -10 -10 -------- Run | Yrd Mat Min Sub Total Allies 3 | . . 3 . Largest Group 3 | . . 3 3 Highest-Rated Group 40 | . . 40 40 Highest-Rated Ally 16 | . . 16 16 Total Orders . | . . . . Ally Attacks 24 | . . 14 10 Total Damage 276 | . . 187 89 Kills 4 | . . 4 . Allies Corrupted . | . . . . Allies Melted . | . . . . Intel | -11 -10 -10 -10 ------- Run | Yrd Mat Min Sub Active Infowar (turns) 563 | . . . 563 Sensors 563 | . . . 563 Robot Analysis Total 1 | . 1 . . Derelict Logs Recovered 1 | . . 1 . Drone Launches . | . . . . Drone Recoveries . | . . . . Exploration | -11 -10 -10 -10 ------------- Run | Yrd Mat Min Sub Turns Passed 2784 | 80 837 829 1038 Spaces Moved 1442 | 43 415 455 529 Core 1 | 1 . . . Treads 1441 | 42 415 455 529 Legs . | . . . . Wheels . | . . . . Hover . | . . . . Flight . | . . . . Fastest Speed 50 | 50 160 160 160 Average Speed 165 | 157 161 160 172 Slowest Speed 240 | 160 240 240 240 Overloaded Moves . | . . . . Propulsion Burnouts . | . . . . Robots Hopped . | . . . . Potential Cave-ins . | . . . . Cave-ins Triggered . | . . . . Exploration Rate (%) 45 | 5 63 81 32 Regions Visited 3 Branch Regions 2 Pre-discovered Areas 2 | . 1 1 . Known Exits Taken 1 | . . 1 . Unknown Exits Taken 2 | 1 1 . . Scrap Searched 1 | . . 1 . Spaces Dug . | . . . . Terrain Destroyed 50 | . . . 50 Melee . | . . . . Projectile . | . . . . AOE 50 | . . . 50 Terrain Rammed . | . . . . Walls Destroyed . | . . . . Machines Disabled . | . . . . Actions | -11 -10 -10 -10 --------- Run | Yrd Mat Min Sub Total 1682 | 52 524 523 583 Wait 97 | . 59 36 2 Move 1439 | 42 414 454 529 Hop . | . . . . Pick Up 20 | 4 10 3 3 Fast Attach 11 | 6 4 1 . Attach 2 | . . . 2 Detach . | . . . . Swap 13 | . 2 4 7 Drop 12 | . 1 6 5 Fire 84 | . 30 19 35 Melee . | . . . . Ram . | . . . . Kick . | . . . . Crush 4 | . 4 . . Escape Stasis . | . . . . Rewire . | . . . . Trap . | . . . . Miscellaneous . | . . . . Route ------- -11/Scrapyard -10/Materials (discovered 3 exits: *Mat / [*Min] / Sub) -10/Mines (discovered 3 exits: *Mat x2 / *Sub) -10/Subcaves (discovered 1 exit: Rec) History --------- Turn | Location | Event 10 | -11/Scrapyard | Discovered new exit (range 15) 81 | -11/Scrapyard | Entered Materials 212 | -10/Materials | Discovered new exit (range 9) 303 | -10/Materials | Build established: Mutant 451 | -10/Materials | Discovered new exit (range 14) 771 | -10/Materials | Identified exit to Subcaves 802 | -10/Materials | Learned location of Recycling (-8) 822 | -10/Materials | Learned location of 2 exits from Mines 832 | -10/Materials | Learned location of 1 exit from Storage 844 | -10/Materials | Learned location of 1 exit from Storage 881 | -10/Materials | Derelicts attacked the area 896 | -10/Materials | Learned 4 Recycling zone layouts 918 | -10/Materials | Entered Mines 919 | -10/Mines | Identified exit to Materials 994 | -10/Mines | Assisted by bots powering up and referring to "LRC-V3" 1010 | -10/Mines | Learned location of Storage (-8) 1087 | -10/Mines | Found a damaged Exp. Sensor Array with a note attached 1091 | -10/Mines | Found Prototype Device 1265 | -10/Mines | Discovered exit to Subcaves (range 5) 1398 | -10/Mines | Received a Rocket Launcher from a helpful Derelict 1747 | -10/Mines | Entered Subcaves 1747 | -10/Subcaves | Accompanied by 3 allies 1748 | -10/Subcaves | Approached by a straggling Scientist 1748 | -10/Subcaves | Identified exit to Recycling 1851 | -10/Subcaves | Core integrity fell below 50% 1915 | -10/Subcaves | Build established: Scavenger-Mutant 2176 | -10/Subcaves | Core integrity fell below 20% 2222 | -10/Subcaves | Identified Exp. Sensor Array 2571 | -10/Subcaves | Shifting Twisted Machinery released Mak. Hacking Suite 2573 | -10/Subcaves | Shifting Twisted Machinery released Enh. Flamer 2728 | -10/Subcaves | A swath of the cavern ceiling suddenly collapsed 2783 | -10/Subcaves | Ambushed by Subdweller buried in earth 2785 | -10/Subcaves | Destroyed by N4-OD9(R) with Subdweller Machine Gun Last Messages --------------- here" 02440_ Acquired 36 matter. 02460_ The unstable cave ceiling collapses. 1B-D8K(c): "I think it's somewhere east of here" Mak. Hacking Suite falls loose from the Twisted Machinery. Enh. Flamer falls loose from the Twisted Machinery. 1B-D8K(c): "I think it's somewhere east of here" 1B-D8K(c): "I think it's somewhere northeast of here" A swath of the cavern ceiling suddenly collapses. 1B-D8K(c): "I think it's somewhere northeast of here" 02779_ Lgt. Treads destroyed. 02779_ Destroyed Lgt. Treads. 02784_ NJ-3BC(R): "THANKSYOU!" Map ----- +----------------------------------------------------+ | ###????????????????????????????????????????????? | | ##???????????????????????????????????????????? | | [ #???????????????????????????????????????????? | | ##???????????????????????????????????????????? | | #???????????????????????????????????????????? | | ##???????????????????????????????????????????? | | % #????????????????????????????????????????????? | | #% #????????????????????????????????????????????? | | ## #???????????????????????????????????????????? | | #???????????????????????????????????????????? | | ???????????????????????????????????????????? | | ??????????????????????????????????????????? | | ## ?????????????????????????????????????????? | | ?# ?????????????????????????????????????????? | | ?# ??????????????>?????????????????????????? | | ? ???????????????????????????????????????? | | ??????????????????????????????????????? | | ??????????????????????????????????????? | | ## ?????????????????????????????????????? | | #? ????????????????????????????????????? | | ##?????????????????###???????????????????? | | ?????????????????## #???????????????????? | | ???????????????????# #???????????????????? | | ?????????????? ?????#### #???????????????????? | | ?????????????? ????# #???????????????????? | | ?????????????? ????# @ #????????????????????? | | ?????????????# ???# R##????????????????????? | | ????????????? #??### ????????????????????? | | ????????????? ???# # #???????????????????? | | ????????????? ???# R #??????????????????? | | ????????????? ??## % ##??????????????????? | | ?#####???????# ??# #??????????????????? | | ##"""##???########## # # #########??????????? | | # """"##?#?""##""## ##### # ???? | | " "" ""#?? #""#"#";; ##????## ???? | | """"""#???? ""#""#; ##??????# ### ## ???? | | "" ""#?????# ##" #???????## ##?????????????? | | "#??###?# # ### #?? #?????????????? | | "#### ### #?# ????????????? | | ##### ## #?# ???????????? | | #???# ## ##?? #??????????? | | #???# #? #???## #??????????? | | ##??## #?# ???? "??????????? | | ##### ## #?? ????? "" ?????????? | | # ## ##### #??# ?????? " ?????????? | | ##???## #?? ###???????"???????????? | | #?????## #?? ##?????????????????????? | | # ##??????# ?? ##??????????????????????? | | ### #???????# ?#???????????????????????? | | #?## #???????? ##?????????????????????????? | +----------------------------------------------------+ Best States ------------- Heat Dissipation 25 Energy Generation 10 Energy Capacity 250 Matter Stores 300 Matter Capacity 300 Sight Range 16 Robot Scan Range 20 Terrain Scan Density 10 Utility Shielding 33 Weapon Shielding 33 Evasion (%) 40 Recoil Reduction 2 Item Schematics ----------------- None Robot Schematics ------------------ None Fabricated ------------ Nothing Repaired ---------- Nothing Studied --------- None Alien Tech Used ----------------- None Achievements -------------- None Challenges ------------ None Game ------ Seed UtilityHackingMask Manual? 0 Play Time 00:14:08 Cumulative 117.4 hours Start 2025.10.30 @ 15:07:23 End 2025.10.30 @ 15:18:06 Sessions 1 Manual Loads 0 Difficulty Rogue Special Mode None Game No. 308 Rogue 306 Adventurer 2 Explorer 0 Win Type - Total 1 Types 1/0/0/0/0/0/0/0/0/0 Lore% 78 Gallery% 61 Achievement% 37 Wizard Run 0 Options --------- Layout 2 ASCII 0 Keyboard 0 Movement Numpad Keybinds 0 Fullscreen 2 Font 24/Smallcaps Map View 50x44 Zoom Use 0% Tactical HUD 1 Map Filters NONE Filters NONE Steam 1 RUN: 7206c25c-6f40-4fe2-8020-fc21d5448772